[Event "AUT Bundesliga 2022-23"]
[Site "Jenbach"]
[Date "2022.11.04"]
[Round "2.1"]
[White "Idani, Pouya"]
[Black "Esipenko, Andrey"]
[Result "1/2-1/2"]
[ECO "C89"]
[WhiteElo "2623"]
[BlackElo "2668"]
[Annotator "ChessBase"]
[PlyCount "251"]
[EventDate "2022.11.03"]
[EventType "team-tourn"]
[EventCountry "AUT"]
[SourceTitle "playchess.com"]
[Source "ChessBase"]
[SourceQuality "1"]
[TimeControl "40/5400+30:1800+30"]

1. e4 {[%emt 0:00:02]} e5 {[%emt 0:00:16]} 2. Nf3 {[%emt 0:00:05]} Nc6 {[%emt 0:00:16]} 3. Bb5 {[%emt 0:00:04]} a6 {[%emt 0:00:13]} 4. Ba4 {[%emt 0:00:05]} Nf6 {[%emt 0:00:14]} 5. O-O {[%emt 0:00:06]} Be7 {[%emt 0:00:24]} 6. Re1 {[%emt 0:00:06]} b5 {[%emt 0:00:09]} 7. Bb3 {[%emt 0:00:05]} O-O {[%emt 0:00:09]} 8. c3 {[%emt 0:00:21]} d5 {[%emt 0:00:59]} 9. exd5 {[%emt 0:00:22]} Nxd5 {[%emt 0:00:12]} 10. Nxe5 {[%emt 0:00:06]} Nxe5 {[%emt 0:00:07]} 11. Rxe5 {[%emt 0:00:03]} c6 {[%emt 0:00:12]} 12. d3 {[%emt 0:00:05]} Bd6 {[%emt 0:00:13]} 13. Re1 {[%emt 0:00:06]} Qh4 {[%emt 0:00:39]} 14. g3 {[%emt 0:00:06]} Qh3 {[%emt 0:00:04]} 15. Re4 {[%emt 0:00:05]} Nf6 {[%emt 0:00:08]} 16. Rh4 {[%emt 0:00:04]} Qf5 {[%emt 0:00:04]} 17. Nd2 {[%emt 0:00:20]} Qg6 {[%emt 0:06:08]} 18. Ne4 {[%emt 0:17:15]} Nxe4 {[%emt 0:03:19]} 19. Rxe4 {[%emt 0:00:08]} Bf5 {[%emt 0:01:18]} 20. Re3 {[%emt 0:00:59]} Bf4 {[%emt 0:37:03]} 21. Re1 {[%emt 0:07:53]} Bc7 {[%emt 0:03:28]} 22. Qf3 {[%emt 0:09:10]} Rae8 {[%emt 0:01:37]} 23. Be3 {[%emt 0:02:26]} Bg4 {[%emt 0:12:31]} 24. Qg2 {[%emt 0:00:09]} Qf5 {[%emt 0:00:58]} 25. Bd1 {[%emt 0:02:02]} Re6 {[%emt 0:00:20]} 26. Bxg4 {[%emt 0:03:07]} Qxg4 {[%emt 0:00:10]} 27. Bd2 {[%emt 0:08:33]} h6 {[%emt 0:04:07]} 28. Rxe6 {[%emt 0:11:59]} Qxe6 {[%emt 0:00:06]} 29. Qf3 {[%emt 0:01:04]} Rd8 {[%emt 0:05:48]} 30. Re1 {[%emt 0:03:38]} Qd7 {[%emt 0:00:25]} 31. d4 {[%emt 0:00:37]} Bd6 {[%emt 0:01:17]} 32. Kg2 {[%emt 0:02:48]} Bf8 {[%emt 0:01:50]} 33. h4 {[%emt 0:03:36]} c5 {[%emt 0:02:27]} 34. Be3 {[%emt 0:00:20]} Qe6 {[%emt 0:01:08]} 35. Re2 {[%emt 0:10:29]} Qc4 {[%emt 0:09:49]} 36. dxc5 {[%emt 0:01:57]} Bxc5 {[%emt 0:00:14]} 37. Bxc5 {[%emt 0:00:05]} Qxc5 {[%emt 0:00:03]} 38. b3 {[%emt 0:04:28]} h5 {[%emt 0:03:22]} 39. Re4 {[%emt 0:02:22]} g6 {[%emt 0:02:19]} 40. c4 {[%emt 0:00:00]} Qd6 {[%emt 0:00:00]} 41. Rf4 {[%emt 0:06:02]} Qc7 {[%emt 0:12:16]} 42. cxb5 {[%emt 0:08:50]} axb5 {[%emt 0:00:09]} 43. a4 {[%emt 0:00:02]} bxa4 {[%emt 0:00:42]} 44. bxa4 {[%emt 0:00:20]} Rd6 {[%emt 0:03:31]} 45. Rb4 {[%emt 0:03:44]} Kg7 {[%emt 0:02:20]} 46. Rf4 {[%emt 0:05:59]} Rd2 {[%emt 0:02:08]} 47. Qe4 {[%emt 0:00:48]} Rd1 {[%emt 0:03:00]} 48. Rf3 {[%emt 0:00:53]} Rd2 {[%emt 0:01:46]} 49. Qb4 {[%emt 0:01:03]} Qd8 {[%emt 0:01:45]} 50. Qc3+ {[%emt 0:04:04]} Kg8 {[%emt 0:00:10]} 51. Qc4 {[%emt 0:00:12]} Rd7 {[%emt 0:00:27]} 52. Qb5 {[%emt 0:04:23]} Rd5 {[%emt 0:01:12]} 53. Qb7 {[%emt 0:00:05]} Rd7 {[%emt 0:00:07]} 54. Qc6 {[%emt 0:00:15]} Rd6 {[%emt 0:00:26]} 55. Qe4 {[%emt 0:00:27]} Rd4 {[%emt 0:00:23]} 56. Qc6 {[%emt 0:00:23]} Rd6 {[%emt 0:00:13]} 57. Qc4 {[%emt 0:01:49]} Rd7 {[%emt 0:00:17]} 58. Rf4 {[%emt 0:00:39]} Qa8+ {[%emt 0:00:23]} 59. Kh2 {[%emt 0:00:30]} Qd8 {[%emt 0:00:42]} 60. Re4 {[%emt 0:02:11]} Kh7 {[%emt 0:03:33]} 61. Re1 {[%emt 0:01:51]} Qf6 {[%emt 0:01:25]} 62. Qa2 {[%emt 0:00:44]} Rb7 {[%emt 0:01:37]} 63. Re2 {[%emt 0:00:57]} Qf3 {[%emt 0:00:58]} 64. Rb2 {[%emt 0:01:21]} Ra7 {[%emt 0:02:22]} 65. Rb4 {[%emt 0:01:09]} Qc3 {[%emt 0:01:41]} 66. Rb5 {[%emt 0:01:08]} Qc6 {[%emt 0:02:22]} 67. Rb4 {[%emt 0:00:54]} Qc5 {[%emt 0:00:36]} 68. Qb2 {[%emt 0:00:18]} Ra8 {[%emt 0:02:02]} 69. Rb5 {[%emt 0:01:44]} Qc8 {[%emt 0:01:03]} 70. a5 {[%emt 0:00:13]} Qd8 {[%emt 0:00:46]} 71. Rb7 {[%emt 0:01:08]} Qd5 {[%emt 0:00:16]} 72. Rb5 {[%emt 0:00:07]} Qd8 {[%emt 0:00:02]} 73. Qe5 {[%emt 0:01:22]} Qd2 {[%emt 0:01:01]} 74. Qf6 {[%emt 0:00:46]} Qd7 {[%emt 0:00:19]} 75. Re5 {[%emt 0:00:50]} Ra7 {[%emt 0:00:02]} 76. Rc5 {[%emt 0:00:40]} Qb7 {[%emt 0:01:06]} 77. Qb6 {[%emt 0:01:01]} Qe7 {[%emt 0:00:50]} 78. Re5 {[%emt 0:00:51]} Qxe5 {[%emt 0:00:44]} 79. Qxa7 {[%emt 0:00:36]} Qd5 {[%emt 0:00:34]} 80. a6 {[%emt 0:00:00]} g5 {[%emt 0:00:02]} 81. Qb7 {[%emt 0:02:27]} Qf5 {[%emt 0:00:01]} 82. hxg5 {[%emt 0:00:25]} Qxf2+ {[%emt 0:01:02]} 83. Qg2 {[%emt 0:00:05]} Qa7 {[%emt 0:00:24]} 84. Qc2+ {[%emt 0:00:39]} Kg7 {[%emt 0:00:21]} 85. Qc3+ {[%emt 0:00:12]} Kg8 {[%emt 0:00:14]} 86. Qc8+ {[%emt 0:00:26]} Kg7 {[%emt 0:00:02]} 87. Qc3+ {[%emt 0:00:16]} Kg8 {[%emt 0:00:02]} 88. Qf6 {[%emt 0:00:09]} Qe3 {[%emt 0:00:45]} 89. g6 {[%emt 0:01:20]} Qd2+ {[%emt 0:01:46]} 90. Kh3 {[%emt 0:00:24]} Qd7+ {[%emt 0:00:21]} 91. Kh2 {[%emt 0:00:07]} Qd2+ {[%emt 0:00:04]} 92. Kh3 {[%emt 0:00:03]} Qd7+ {[%emt 0:00:04]} 93. Kg2 {[%emt 0:00:03]} Qd5+ {[%emt 0:00:36]} 94. Qf3 {[%emt 0:01:08]} Qa2+ {[%emt 0:00:28]} 95. Qf2 {[%emt 0:00:23]} Qd5+ {[%emt 0:00:01]} 96. Kh2 {[%emt 0:00:12]} fxg6 {[%emt 0:00:17]} 97. a7 {[%emt 0:00:42]} h4 {[%emt 0:01:00]} 98. gxh4 {[%emt 0:00:59]} Kh7 {[%emt 0:00:28]} 99. Qe3 {[%emt 0:00:27]} Qd6+ {[%emt 0:00:28]} 100. Kg1 {[%emt 0:00:29]} Qd1+ {[%emt 0:00:13]} 101. Kf2 {[%emt 0:00:12]} Qc2+ {[%emt 0:00:10]} 102. Kf3 {[%emt 0:00:15]} Qc6+ {[%emt 0:00:25]} 103. Kg3 {[%emt 0:00:20]} Qc7+ {[%emt 0:00:14]} 104. Kg2 {[%emt 0:00:59]} Qc2+ {[%emt 0:00:35]} 105. Kf3 {[%emt 0:00:31]} Qc6+ {[%emt 0:00:41]} 106. Kg4 {[%emt 0:01:04]} Qc8+ {[%emt 0:00:00]} 107. Kg3 {[%emt 0:00:12]} Qc7+ {[%emt 0:00:00]} 108. Kh3 {[%emt 0:00:10]} Qc8+ {[%emt 0:00:43]} 109. Kg2 {[%emt 0:00:15]} Qc2+ {[%emt 0:01:22]} 110. Qf2 {[%emt 0:00:28]} Qc6+ {[%emt 0:00:23]} 111. Kf1 {[%emt 0:00:43]} Qc1+ {[%emt 0:00:51]} 112. Ke2 {[%emt 0:00:04]} Qc2+ {[%emt 0:00:49]} 113. Kf3 {[%emt 0:00:15]} Qc6+ {[%emt 0:01:04]} 114. Kf4 {[%emt 0:00:11]} Qf6+ {[%emt 0:00:28]} 115. Kg3 {[%emt 0:00:29]} Qd6+ {[%emt 0:00:14]} 116. Kg2 {[%emt 0:00:39]} Qc6+ {[%emt 0:00:20]} 117. Qf3 {[%emt 0:00:38]} Qc2+ {[%emt 0:00:15]} 118. Kf1 {[%emt 0:00:47]} Qc1+ {[%emt 0:00:24]} 119. Kg2 {[%emt 0:00:05]} Qc2+ {[%emt 0:00:11]} 120. Qf2 {[%emt 0:00:12]} Qc6+ {[%emt 0:00:14]} 121. Kg3 {[%emt 0:01:12]} Qc7+ {[%emt 0:00:28]} 122. Kf3 {[%emt 0:00:27]} Qc6+ {[%emt 0:00:25]} 123. Kf4 {[%emt 0:00:54]} Qf6+ {[%emt 0:00:15]} 124. Ke3 {[%emt 0:00:07]} Qb6+ {[%emt 0:00:26]} 125. Ke2 {[%emt 0:00:26]} Qb5+ {[%emt 0:01:22]} 126. Kf3 {[%emt 0:00:14]} 1/2-1/2

[Event "AUT Bundesliga 2022-23"]
[Site "Jenbach"]
[Date "2022.11.04"]
[Round "2.2"]
[White "Maghsoodloo, Parham"]
[Black "Janzelj, Tim"]
[Result "1-0"]
[ECO "B12"]
[WhiteElo "2721"]
[BlackElo "2456"]
[Annotator "ChessBase"]
[PlyCount "85"]
[EventDate "2022.11.03"]
[EventType "team-tourn"]
[EventCountry "AUT"]
[SourceTitle "playchess.com"]
[Source "ChessBase"]
[SourceQuality "1"]
[TimeControl "40/5400+30:1800+30"]

1. e4 {[%emt 0:00:03]} c6 {[%emt 0:00:06]} 2. d4 {[%emt 0:00:05]} d5 {[%emt 0:00:07]} 3. f3 {[%emt 0:00:04]} dxe4 {[%emt 0:00:06]} 4. fxe4 {[%emt 0:00:05]} e5 {[%emt 0:00:16]} 5. Nf3 {[%emt 0:00:05]} Bg4 {[%emt 0:00:16]} 6. c3 {[%emt 0:00:06]} Nd7 {[%emt 0:03:50]} 7. Bd3 {[%emt 0:00:11]} Bd6 {[%emt 0:00:33]} 8. O-O {[%emt 0:01:53]} Ngf6 {[%emt 0:02:03]} 9. Be3 {[%emt 0:02:51]} O-O {[%emt 0:02:31]} 10. Nbd2 {[%emt 0:00:12]} b5 {[%emt 0:06:50]} 11. a4 {[%emt 0:04:33]} a6 {[%emt 0:01:54]} 12. Qc2 {[%emt 0:01:31]} Qc7 {[%emt 0:02:55]} 13. Kh1 {[%emt 0:12:45]} Rab8 {[%emt 0:18:30]} 14. b4 {[%emt 0:06:51]} Kh8 {[%emt 0:02:22]} 15. Rab1 {[%emt 0:01:29]} Bh5 {[%emt 0:07:30]} 16. Bg1 {[%emt 0:02:43]} Bg6 {[%emt 0:09:41]} 17. Nh4 {[%emt 0:00:35]} Nh5 {[%emt 0:01:45]} 18. Nxg6+ {[%emt 0:01:33]} fxg6 {[%emt 0:02:47]} 19. Nf3 {[%emt 0:12:57]} Nf4 {[%emt 0:01:25]} 20. c4 {[%emt 0:00:17]} exd4 {[%emt 0:10:09]} 21. axb5 {[%emt 0:02:39]} axb5 {[%emt 0:01:27]} 22. c5 {[%emt 0:02:37]} Be5 {[%emt 0:01:03]} 23. Qd2 {[%emt 0:12:04]} Rbd8 {[%emt 0:09:03]} 24. Bc2 {[%emt 0:00:53]} d3 {[%emt 0:01:53]} 25. Bxd3 {[%emt 0:06:23]} Nxd3 {[%emt 0:03:38]} 26. Qxd3 {[%emt 0:00:11]} Nxc5 {[%emt 0:00:22]} 27. Qc2 {[%emt 0:00:05]} Ne6 {[%emt 0:03:58]} 28. Nxe5 {[%emt 0:00:46]} Qxe5 {[%emt 0:00:02]} 29. Rxf8+ {[%emt 0:01:39]} Rxf8 {[%emt 0:00:09]} 30. Qxc6 {[%emt 0:00:05]} Ng5 {[%emt 0:01:34]} 31. Rf1 {[%emt 0:02:19]} Re8 {[%emt 0:00:31]} 32. Bd4 {[%emt 0:00:21]} Qe7 {[%emt 0:03:27]} 33. Qxb5 {[%emt 0:06:39]} Nxe4 {[%emt 0:01:56]} 34. Qc6 {[%emt 0:00:54]} Rd8 {[%emt 0:01:40]} 35. Bb6 {[%emt 0:00:40]} Rg8 {[%emt 0:01:06]} 36. b5 {[%emt 0:00:11]} Qh4 {[%emt 0:00:29]} 37. Kg1 {[%emt 0:00:33]} Nd2 {[%emt 0:00:30]} 38. Rd1 {[%emt 0:01:21]} Nc4 {[%emt 0:00:28]} 39. Bf2 {[%emt 0:00:19]} Qh5 {[%emt 0:00:29]} 40. Re1 {[%emt 0:00:00]} Ne5 {[%emt 0:00:00]} 41. Qd5 {[%emt 0:02:01]} Ng4 {[%emt 0:01:11]} 42. Qxh5 {[%emt 0:00:02]} gxh5 {[%emt 0:00:07]} 43. Ba7 {[%emt 0:04:23]} 1-0

[Event "AUT Bundesliga 2022-23"]
[Site "Jenbach"]
[Date "2022.11.04"]
[Round "2.3"]
[White "Sebenik, Matej"]
[Black "Alekseenko, Kirill"]
[Result "1-0"]
[ECO "B51"]
[WhiteElo "2518"]
[BlackElo "2691"]
[Annotator "ChessBase"]
[PlyCount "107"]
[EventDate "2022.11.03"]
[EventType "team-tourn"]
[EventCountry "AUT"]
[SourceTitle "playchess.com"]
[Source "ChessBase"]
[SourceQuality "1"]
[TimeControl "40/5400+30:1800+30"]

1. e4 {[%emt 0:00:05]} c5 {[%emt 0:01:20]} 2. Nf3 {[%emt 0:00:06]} d6 {[%emt 0:00:41]} 3. Bb5+ {[%emt 0:00:14]} Nd7 {[%emt 0:00:29]} 4. c4 {[%emt 0:00:37]} e5 {[%emt 0:09:15]} 5. d3 {[%emt 0:03:37]} g6 {[%emt 0:04:49]} 6. O-O {[%emt 0:03:48]} Bg7 {[%emt 0:04:34]} 7. b4 {[%emt 0:02:53]} b6 {[%emt 0:06:08]} 8. Bc6 {[%emt 0:24:16]} Rb8 {[%emt 0:00:19]} 9. Qa4 {[%emt 0:00:26]} Ne7 {[%emt 0:08:10]} 10. b5 {[%emt 0:00:09]} Qc7 {[%emt 0:06:17]} 11. Nc3 {[%emt 0:05:01]} a5 {[%emt 0:01:51]} 12. Bg5 {[%emt 0:16:05]} f6 {[%emt 0:00:35]} 13. Bd2 {[%emt 0:01:02]} O-O {[%emt 0:01:52]} 14. Rae1 {[%emt 0:04:40]} Rf7 {[%emt 0:15:15]} 15. Nd5 {[%emt 0:07:15]} Qd8 {[%emt 0:00:47]} 16. h4 {[%emt 0:00:24]} Nf8 {[%emt 0:04:07]} 17. h5 {[%emt 0:01:05]} Nxd5 {[%emt 0:05:28]} 18. Bxd5 {[%emt 0:03:48]} Be6 {[%emt 0:00:05]} 19. hxg6 {[%emt 0:00:03]} hxg6 {[%emt 0:00:16]} 20. Qd1 {[%emt 0:01:40]} Qd7 {[%emt 0:04:33]} 21. a4 {[%emt 0:00:37]} Bxd5 {[%emt 0:04:57]} 22. cxd5 {[%emt 0:00:10]} Re8 {[%emt 0:00:05]} 23. Bc1 {[%emt 0:09:53]} Bh8 {[%emt 0:03:52]} 24. Nd2 {[%emt 0:00:40]} f5 {[%emt 0:01:27]} 25. Nc4 {[%emt 0:00:08]} f4 {[%emt 0:03:37]} 26. Qf3 {[%emt 0:08:14]} Qd8 {[%emt 0:03:48]} 27. Qg4 {[%emt 0:00:40]} Nh7 {[%emt 0:03:50]} 28. g3 {[%emt 0:03:05]} g5 {[%emt 0:00:03]} 29. f3 {[%emt 0:01:30]} Nf6 {[%emt 0:00:31]} 30. Qxg5+ {[%emt 0:01:01]} Rg7 {[%emt 0:00:08]} 31. Qf5 {[%emt 0:00:03]} Nxe4 {[%emt 0:02:50]} 32. Rxe4 {[%emt 0:01:00]} Rg5 {[%emt 0:02:20]} 33. Qxg5+ {[%emt 0:01:50]} Qxg5 {[%emt 0:00:05]} 34. Bxf4 {[%emt 0:00:25]} Qg6 {[%emt 0:01:07]} 35. Bg5 {[%emt 0:00:42]} Bg7 {[%emt 0:01:49]} 36. Bh4 {[%emt 0:00:11]} Rf8 {[%emt 0:00:21]} 37. Nxb6 {[%emt 0:00:46]} Rf4 {[%emt 0:00:26]} 38. Kg2 {[%emt 0:00:05]} Rxh4 {[%emt 0:00:49]} 39. Rxh4 {[%emt 0:00:08]} Qxd3 {[%emt 0:00:02]} 40. Re4 {[%emt 0:00:00]} Bh6 {[%emt 0:00:00]} 41. Rfe1 {[%emt 0:04:54]} Bd2 {[%emt 0:04:42]} 42. R1e2 {[%emt 0:01:37]} Bc3 {[%emt 0:00:07]} 43. Nc8 {[%emt 0:03:51]} Kg7 {[%emt 0:19:15]} 44. Nxd6 {[%emt 0:02:14]} Qxd5 {[%emt 0:00:06]} 45. Nc4 {[%emt 0:01:40]} Qd1 {[%emt 0:00:06]} 46. Nxe5 {[%emt 0:01:07]} Bd4 {[%emt 0:00:03]} 47. Nc6 {[%emt 0:04:17]} Qg1+ {[%emt 0:03:06]} 48. Kh3 {[%emt 0:00:04]} Bf2 {[%emt 0:00:49]} 49. Re7+ {[%emt 0:11:45]} Kf8 {[%emt 0:00:05]} 50. Re8+ {[%emt 0:00:03]} Kg7 {[%emt 0:00:35]} 51. R2e7+ {[%emt 0:00:19]} Kh6 {[%emt 0:00:59]} 52. Rh8+ {[%emt 0:00:04]} Kg6 {[%emt 0:00:12]} 53. Rg8+ {[%emt 0:00:09]} Kh6 {[%emt 0:01:55]} 54. Ne5 {[%emt 0:03:10]} 1-0

[Event "AUT Bundesliga 2022-23"]
[Site "Jenbach"]
[Date "2022.11.04"]
[Round "2.4"]
[White "Moussard, Jules"]
[Black "Subelj, Jan"]
[Result "0-1"]
[ECO "C02"]
[WhiteElo "2686"]
[BlackElo "2494"]
[Annotator "ChessBase"]
[PlyCount "82"]
[EventDate "2022.11.03"]
[EventType "team-tourn"]
[EventCountry "AUT"]
[SourceTitle "playchess.com"]
[Source "ChessBase"]
[SourceQuality "1"]
[TimeControl "40/5400+30:1800+30"]

1. e4 {[%emt 0:00:03]} e6 {[%emt 0:00:35]} 2. d4 {[%emt 0:00:05]} d5 {[%emt 0:00:09]} 3. e5 {[%emt 0:00:32]} c5 {[%emt 0:00:45]} 4. c3 {[%emt 0:00:06]} Nc6 {[%emt 0:00:38]} 5. Nf3 {[%emt 0:00:08]} Bd7 {[%emt 0:01:42]} 6. Be2 {[%emt 0:01:38]} f6 {[%emt 0:01:19]} 7. O-O {[%emt 0:01:10]} fxe5 {[%emt 0:00:51]} 8. Nxe5 {[%emt 0:00:29]} Nxe5 {[%emt 0:00:17]} 9. dxe5 {[%emt 0:00:03]} Qc7 {[%emt 0:01:23]} 10. Re1 {[%emt 0:00:12]} O-O-O {[%emt 0:02:15]} 11. Bf1 {[%emt 0:00:36]} Ne7 {[%emt 0:20:20]} 12. a4 {[%emt 0:00:31]} Nc6 {[%emt 0:02:01]} 13. Na3 {[%emt 0:26:09]} a6 {[%emt 0:01:39]} 14. Rb1 {[%emt 0:10:47]} Nxe5 {[%emt 0:11:29]} 15. b4 {[%emt 0:04:06]} c4 {[%emt 0:03:41]} 16. b5 {[%emt 0:16:27]} Bc5 {[%emt 0:04:23]} 17. bxa6 {[%emt 0:06:31]} bxa6 {[%emt 0:01:18]} 18. Ra1 {[%emt 0:12:57]} h5 {[%emt 0:05:40]} 19. Be2 {[%emt 0:06:27]} Ng4 {[%emt 0:03:59]} 20. Bxg4 {[%emt 0:00:05]} hxg4 {[%emt 0:00:12]} 21. Be3 {[%emt 0:07:01]} Qxh2+ {[%emt 0:06:05]} 22. Kf1 {[%emt 0:00:01]} Bxe3 {[%emt 0:05:29]} 23. Rxe3 {[%emt 0:00:02]} Qf4 {[%emt 0:02:17]} 24. Ke2 {[%emt 0:01:11]} Rhf8 {[%emt 0:00:50]} 25. Qg1 {[%emt 0:03:29]} e5 {[%emt 0:00:22]} 26. g3 {[%emt 0:01:08]} Qf6 {[%emt 0:00:11]} 27. Ke1 {[%emt 0:01:16]} d4 {[%emt 0:00:46]} 28. Re2 {[%emt 0:00:14]} d3 {[%emt 0:00:07]} 29. Rb2 {[%emt 0:00:55]} e4 {[%emt 0:00:49]} 30. Rc1 {[%emt 0:00:18]} Qc6 {[%emt 0:01:47]} 31. Rcb1 {[%emt 0:00:26]} Qc5 {[%emt 0:01:08]} 32. Rb8+ {[%emt 0:00:56]} Kc7 {[%emt 0:00:06]} 33. R8b7+ {[%emt 0:00:03]} Kd6 {[%emt 0:00:34]} 34. R1b4 {[%emt 0:00:15]} Ke7 {[%emt 0:01:38]} 35. Qh2 {[%emt 0:00:18]} e3 {[%emt 0:00:21]} 36. Nxc4 {[%emt 0:01:23]} d2+ {[%emt 0:01:41]} 37. Kd1 {[%emt 0:00:01]} exf2 {[%emt 0:01:35]} 38. Nxd2 {[%emt 0:00:59]} f1=Q+ {[%emt 0:00:15]} 39. Nxf1 {[%emt 0:00:03]} Rxf1+ {[%emt 0:00:08]} 40. Ke2 {[%emt 0:00:00]} Qf5 {[%emt 0:00:00]} 41. Qg2 {[%emt 0:02:02]} Rf3 {[%emt 0:05:51]} 0-1

[Event "AUT Bundesliga 2022-23"]
[Site "Jenbach"]
[Date "2022.11.04"]
[Round "2.5"]
[White "Diermair, Andreas"]
[Black "Naiditsch, Arkadij"]
[Result "0-1"]
[ECO "D37"]
[WhiteElo "2455"]
[BlackElo "2667"]
[Annotator "ChessBase"]
[PlyCount "94"]
[EventDate "2022.11.03"]
[EventType "team-tourn"]
[EventCountry "AUT"]
[SourceTitle "playchess.com"]
[Source "ChessBase"]
[SourceQuality "1"]
[TimeControl "40/5400+30:1800+30"]

1. d4 {[%emt 0:00:03]} Nf6 {[%emt 0:00:07]} 2. c4 {[%emt 0:00:06]} e6 {[%emt 0:00:06]} 3. Nf3 {[%emt 0:00:35]} d5 {[%emt 0:00:12]} 4. Nc3 {[%emt 0:00:10]} Nbd7 {[%emt 0:00:12]} 5. Bf4 {[%emt 0:01:24]} dxc4 {[%emt 0:00:43]} 6. e3 {[%emt 0:00:26]} Nb6 {[%emt 0:00:54]} 7. Bxc4 {[%emt 0:00:32]} Nxc4 {[%emt 0:00:08]} 8. Qa4+ {[%emt 0:00:02]} c6 {[%emt 0:00:11]} 9. Qxc4 {[%emt 0:00:04]} Nd5 {[%emt 0:00:06]} 10. O-O {[%emt 0:05:08]} Nxf4 {[%emt 0:00:40]} 11. exf4 {[%emt 0:00:03]} Be7 {[%emt 0:00:08]} 12. Rfe1 {[%emt 0:01:25]} O-O {[%emt 0:04:47]} 13. Ne5 {[%emt 0:05:32]} Qb6 {[%emt 0:01:38]} 14. Re2 {[%emt 0:06:45]} a5 {[%emt 0:00:09]} 15. a3 {[%emt 0:04:15]} Rd8 {[%emt 0:02:50]} 16. Rd1 {[%emt 0:02:31]} Qa6 {[%emt 0:00:17]} 17. Qb3 {[%emt 0:03:13]} Bd6 {[%emt 0:05:45]} 18. g3 {[%emt 0:03:44]} a4 {[%emt 0:13:51]} 19. Qc2 {[%emt 0:01:03]} f6 {[%emt 0:02:38]} 20. Nd3 {[%emt 0:13:13]} b6 21. Ne4 {[%emt 0:08:27]} Bf8 {[%emt 0:14:30]} 22. Qc3 {[%emt 0:12:09]} Bb7 {[%emt 0:05:00]} 23. Re3 {[%emt 0:03:19]} Qb5 {[%emt 0:06:34]} 24. f3 {[%emt 0:09:02]} Rd7 {[%emt 0:04:40]} 25. Ndf2 {[%emt 0:02:40]} Rad8 {[%emt 0:00:24]} 26. Rdd3 {[%emt 0:02:41]} Ba6 {[%emt 0:01:11]} 27. Qe1 {[%emt 0:06:55]} Qxb2 {[%emt 0:04:16]} 28. Rd2 {[%emt 0:00:12]} Qb5 {[%emt 0:00:11]} 29. Ng4 {[%emt 0:03:24]} Rxd4 {[%emt 0:03:40]} 30. Nexf6+ {[%emt 0:01:43]} gxf6 {[%emt 0:00:24]} 31. Nxf6+ {[%emt 0:01:06]} Kf7 {[%emt 0:03:02]} 32. Rxd4 {[%emt 0:01:24]} Rxd4 {[%emt 0:00:07]} 33. Nxh7 {[%emt 0:00:59]} Bc5 {[%emt 0:04:21]} 34. Ng5+ {[%emt 0:00:46]} Kg8 {[%emt 0:00:12]} 35. Kg2 {[%emt 0:00:46]} Rd2+ {[%emt 0:01:09]} 36. Kh3 {[%emt 0:00:10]} Qf1+ {[%emt 0:02:54]} 37. Kg4 {[%emt 0:00:13]} Qxe1 {[%emt 0:00:09]} 38. Rxe1 {[%emt 0:00:04]} Bxa3 {[%emt 0:00:10]} 39. h4 {[%emt 0:01:26]} Bb2 {[%emt 0:01:37]} 40. Kh5 {[%emt 0:00:00]} Be2 {[%emt 0:00:00]} 41. Kg6 {[%emt 0:03:20]} a3 {[%emt 0:06:48]} 42. Ne4 {[%emt 0:01:37]} Rc2 {[%emt 0:01:06]} 43. h5 {[%emt 0:00:38]} a2 {[%emt 0:00:45]} 44. h6 {[%emt 0:00:32]} a1=Q {[%emt 0:00:41]} 45. h7+ {[%emt 0:00:09]} Kf8 {[%emt 0:00:54]} 46. Rxa1 {[%emt 0:00:26]} Bxa1 {[%emt 0:00:06]} 47. f5 {[%emt 0:00:08]} Bh8 {[%emt 0:00:29]} 0-1

[Event "AUT Bundesliga 2022-23"]
[Site "Jenbach"]
[Date "2022.11.04"]
[Round "2.6"]
[White "Bacrot, Etienne"]
[Black "Schreiner, Peter"]
[Result "1-0"]
[ECO "B36"]
[WhiteElo "2646"]
[BlackElo "2404"]
[Annotator "ChessBase"]
[PlyCount "77"]
[EventDate "2022.11.03"]
[EventType "team-tourn"]
[EventCountry "AUT"]
[SourceTitle "playchess.com"]
[Source "ChessBase"]
[SourceQuality "1"]
[TimeControl "40/5400+30:1800+30"]

1. e4 {[%emt 0:00:38]} c5 {[%emt 0:00:40]} 2. Nf3 {[%emt 0:00:20]} Nc6 {[%emt 0:00:09]} 3. d4 {[%emt 0:00:06]} cxd4 {[%emt 0:00:10]} 4. Nxd4 {[%emt 0:00:06]} g6 {[%emt 0:03:45]} 5. c4 {[%emt 0:01:53]} Nf6 {[%emt 0:01:07]} 6. Nc3 {[%emt 0:00:13]} Nxd4 {[%emt 0:00:09]} 7. Qxd4 {[%emt 0:00:11]} d6 {[%emt 0:00:09]} 8. Be2 {[%emt 0:04:46]} Bg7 {[%emt 0:00:15]} 9. O-O {[%emt 0:00:10]} O-O {[%emt 0:00:33]} 10. Qd3 {[%emt 0:01:21]} Bd7 {[%emt 0:12:51]} 11. Bg5 {[%emt 0:01:50]} a5 {[%emt 0:06:04]} 12. Rad1 {[%emt 0:08:37]} Bc6 {[%emt 0:02:01]} 13. b3 {[%emt 0:03:49]} Qb6 {[%emt 0:06:35]} 14. Rb1 {[%emt 0:05:43]} Rfc8 {[%emt 0:30:31]} 15. Rfe1 {[%emt 0:03:13]} Nd7 {[%emt 0:02:08]} 16. Nd5 {[%emt 0:04:17]} Bxd5 {[%emt 0:00:10]} 17. exd5 {[%emt 0:00:04]} Nc5 {[%emt 0:06:42]} 18. Qe3 {[%emt 0:03:52]} Re8 {[%emt 0:03:16]} 19. Bg4 {[%emt 0:08:06]} Qb4 {[%emt 0:03:30]} 20. Qe2 {[%emt 0:01:26]} e5 {[%emt 0:05:27]} 21. dxe6 {[%emt 0:02:20]} Nxe6 {[%emt 0:00:11]} 22. Bd2 {[%emt 0:00:10]} Qa3 {[%emt 0:02:09]} 23. Be3 {[%emt 0:01:29]} h5 {[%emt 0:01:24]} 24. Bxe6 {[%emt 0:01:17]} Rxe6 {[%emt 0:00:06]} 25. Qd2 {[%emt 0:00:30]} a4 {[%emt 0:04:50]} 26. Red1 {[%emt 0:02:11]} axb3 {[%emt 0:00:31]} 27. axb3 {[%emt 0:00:02]} Rae8 {[%emt 0:04:05]} 28. h3 {[%emt 0:02:06]} Qa6 {[%emt 0:01:06]} 29. Qb4 {[%emt 0:00:14]} Bf8 {[%emt 0:01:45]} 30. Qb6 {[%emt 0:09:53]} Qxb6 {[%emt 0:01:36]} 31. Bxb6 {[%emt 0:00:03]} Re2 {[%emt 0:00:26]} 32. g3 {[%emt 0:03:36]} Ra2 {[%emt 0:00:30]} 33. Ra1 {[%emt 0:02:30]} Rb2 {[%emt 0:01:26]} 34. Rd3 {[%emt 0:00:43]} f5 {[%emt 0:00:41]} 35. Bd4 {[%emt 0:01:35]} Rc2 {[%emt 0:00:14]} 36. Be3 {[%emt 0:00:08]} Rb8 {[%emt 0:00:43]} 37. Ra5 {[%emt 0:00:50]} Kf7 {[%emt 0:00:31]} 38. Rb5 {[%emt 0:00:17]} Ke6 {[%emt 0:00:22]} 39. Ba7 {[%emt 0:00:35]} 1-0